bitfinex/quotes_ETHUSD_20260126
["timestamp","ask_amount","ask_price","bid_price","bid_amount"]
[1769389935774,18.33887976,2872.6,2870.9,0.0016]
[1769389936071,12.96754997,2872.5,2870.9,0.0016]
[1769389936474,12.2719541,2872.4,2870.2,0.01536732]
[1769389936643,0.87041292,2872.2,2870.4,0.87095827]
[1769389936845,0.729,2872.1,2870.3,2.248355]
[1769389937040,0.87041292,2872.2,2870.3,2.28319456]
[1769389937275,0.87041292,2872.2,2871.1,0.001]
[1769389937563,0.729,2872.1,2871.1,0.001]
[1769389937774,0.87041292,2872.2,2871.1,0.001]
[1769389937945,0.729,2872.0,2871.1,0.001]
[1769389938762,13.05766697,2871.9,2870.2,0.01536732]
[1769389938959,0.87050384,2871.9,2870.3,0.01742686]
[1769389939172,0.729,2871.8,2870.3,13.77573611]
[1769389939359,0.729,2871.8,2870.4,1.37911034]
[1769389939677,0.729,2871.8,2870.3,12.88732506]
[1769389939891,0.87050384,2871.9,2870.3,13.75829621]
[1769389940375,0.87050384,2871.9,2870.3,13.75831337]
[1769389940581,1.59950384,2871.9,2870.4,0.01742553]
[1769389940948,1.59950384,2871.9,2870.3,12.88732506]
[1769389941178,0.50814754,2871.8,2870.4,12.88732506]
[1769389941686,0.50814754,2871.8,2870.5,0.01744828]
[1769389942181,0.87116942,2872.4,2870.5,12.98876431]
[1769389942359,0.0008,2872.4,2871.0,12.88732506]
[1769389942554,0.87117204,2872.4,2871.1,0.03261233]
[1769389942756,0.0008,2872.4,2871.0,12.88732506]
[1769389943082,0.0008,2872.4,2871.1,1.28873251]
[1769389943380,0.0008,2872.4,2871.1,14.17605757]
[1769389943986,0.0008,2872.4,2871.1,15.04679394]
[1769389944186,0.0008,2872.4,2871.3,12.88732506]
[1769389944870,0.0008,2872.4,2871.3,13.75800127]
[1769389945087,0.0008,2872.4,2871.5,12.88732506]
[1769389945655,0.87088519,2873.3,2871.5,12.88732506]
[1769389945883,0.87088519,2873.3,2871.4,1.38518103]
[1769389945884,0.0008,2873.3,2871.9,12.88732506]
[1769389947479,0.0008,2873.3,2871.9,13.75782427]
[1769389947965,0.0008,2873.3,2871.9,12.88732506]
[1769389948165,0.0008,2873.3,2872.0,1.28873251]
[1769389948787,0.0008,2873.3,2872.0,14.17605757]
[1769389948982,0.0008,2873.3,2872.0,15.04652294]
[1769389949183,0.002,2873.1,2872.0,14.17605757]
[1769389949386,0.002,2873.1,2872.0,1.28873251]
[1769389949565,0.002,2873.1,2872.0,13.75779455]
[1769389950468,0.002,2873.1,2872.0,13.84178552]
[1769389950971,0.002,2874.0,2872.5,12.88732506]
[1769389951180,0.002,2874.0,2872.1,12.88732506]
[1769389951181,12.18916313,2874.0,2872.1,12.88732506]
[1769389952477,12.2711541,2873.5,2871.2,0.87069481]
[1769389952681,12.2711541,2873.5,2871.3,2.24648741]
[1769389952879,12.18716313,2873.3,2871.3,1.37580199]
[1769389953181,0.87004941,2873.4,2871.3,14.50864424]
[1769389953182,0.729,2873.2,2871.3,14.50864424]
[1769389953398,0.729,2873.2,2871.4,12.29698959]
[1769389953582,0.729,2873.2,2871.5,13.47628396]
[1769389953778,0.729,2873.2,2871.6,0.03482379]
[1769389954383,0.729,2873.2,2871.5,13.47628396]
[1769389954917,0.87014026,2873.1,2871.5,13.47628396]
[1769389955274,0.87014026,2873.1,2871.6,0.00753127]
[1769389955503,0.50797013,2873.0,2871.6,12.26969465]
[1769389955699,0.50797013,2873.0,2871.6,12.26216338]
[1769389956882,0.87020084,2872.9,2871.6,12.26216338]
[1769389957192,12.99754736,2872.7,2870.6,12.26216338]
[1769389957395,12.99754736,2872.5,2870.7,1.34814161]
[1769389958197,12.99754736,2872.5,2870.7,14.48116993]
[1769389958402,12.99754736,2872.5,2870.7,13.57547029]
[1769389958403,0.729,2872.4,2870.7,13.57547029]
[1769389958781,0.729,2872.4,2870.7,14.44633367]
[1769389959112,0.87038262,2872.3,2870.7,13.57547029]
[1769389959289,0.50809131,2872.2,2870.8,1.27661566]
[1769389959487,0.50809131,2872.2,2870.9,0.03483228]
[1769389959713,13.50563867,2872.2,2870.4,0.03483248]
[1769389960206,12.99754736,2872.0,2870.3,12.26216338]
[1769389960389,12.99754736,2872.0,2870.2,0.01536732]
[1769389960591,1.29975474,2871.9,2870.2,12.2775307]
[1769389961241,0.87053415,2871.8,2870.2,12.2775307]
[1769389961725,13.86808151,2871.8,2870.2,0.01536732]
[1769389962113,13.86808151,2871.8,2870.4,0.001]
[1769389962316,14.86254465,2871.7,2870.4,0.001]
[1769389962690,0.729,2871.6,2870.4,0.001]
[1769389963097,14.86254465,2871.7,2870.4,12.29800173]
[1769389963098,1.86499729,2871.7,2870.4,12.29800173]
[1769389963298,1.59953415,2871.8,2870.4,12.26316338]
[1769389963797,2.89927348,2871.9,2870.4,12.26316338]
[1769389963999,1.59951874,2871.9,2870.4,12.26316338]
[1769389965294,1.59951874,2871.9,2870.4,0.001]
[1769389965499,14.5970661,2871.9,2870.4,0.001]
[1769389965795,14.5970661,2871.9,2870.4,13.13410191]
[1769389965796,0.87051874,2871.9,2870.4,13.13410191]
[1769389966297,0.87051874,2871.9,2870.4,12.26316338]
[1769389966496,0.50809131,2872.2,2870.5,13.48847972]
[1769389966726,0.87044322,2872.1,2870.5,13.48847972]
[1769389966929,0.729,2872.0,2870.5,13.48847972]
[1769389967441,1.59949914,2872.0,2870.7,12.26216338]
[1769389967633,1.59947758,2872.0,2870.8,0.03483349]
[1769389967811,1.59947758,2872.0,2870.9,13.49186307]
[1769389968425,0.87047758,2872.0,2870.9,13.49186307]
[1769389968620,0.87047758,2872.0,2870.9,1.22969969]
[1769389968829,0.87047758,2872.0,2870.5,12.26216338]
[1769389969030,0.87047758,2872.0,2870.6,12.2969993]
[1769389969237,0.729,2871.9,2870.6,12.26216338]
[1769389969536,0.729,2871.9,2870.7,12.29699808]
[1769389969733,1.59950463,2871.9,2870.7,12.26216338]
[1769389970224,1.59950463,2871.9,2870.8,1.22621634]
[1769389971250,0.87050463,2871.9,2870.8,1.22621634]
[1769389972452,0.87050463,2871.9,2870.4,0.001]
[1769389972638,0.87050463,2871.9,2870.4,12.26316338]
[1769389972808,0.729,2871.8,2870.6,12.26216338]
[1769389973007,12.99754736,2872.6,2870.6,12.26216338]
[1769389973008,0.87035231,2872.4,2870.6,0.87087002]
[1769389973211,0.87035231,2872.4,2870.4,0.001]
[1769389973212,0.729,2872.3,2870.7,12.29699808]
[1769389973408,0.729,2872.3,2870.8,1.22969981]
[1769389973717,0.729,2872.3,2870.8,13.52669668]
[1769389973927,0.729,2872.3,2870.8,13.49186319]
[1769389974127,0.729,2872.2,2870.8,13.49186319]
[1769389976322,0.87044322,2872.1,2870.8,13.49186319]
[1769389976527,1.37855004,2872.1,2870.9,13.6113497]
[1769389977540,8.45109035,2874.1,2870.9,13.6113497]
[1769389977541,2.08,2872.5,2870.9,13.6113497]
[1769389977743,0.87023113,2872.8,2870.9,13.69534067]
[1769389977930,0.729,2872.8,2871.2,12.26216338]
[1769389978243,0.36792197,2872.7,2871.4,12.26216338]
[1769389978437,0.87026142,2872.7,2871.4,12.26216338]
[1769389978942,0.87026142,2872.7,2871.3,1.23461544]
[1769389979130,0.87026142,2872.7,2871.1,0.03482985]
[1769389979333,13.86780878,2872.7,2871.1,0.90557284]
[1769389979537,0.87017055,2873.0,2871.5,12.26216338]
[1769389980042,0.729,2872.9,2871.5,12.26216338]
[1769389980546,1.59921823,2872.9,2871.5,13.13276287]
[1769389980755,3.47971327,2873.9,2871.7,12.34615435]
[1769389981044,0.87187795,2874.0,2872.2,12.26216338]
[1769389981210,0.002,2874.0,2872.4,12.26216338]
[1769389981410,0.002,2874.0,2872.6,12.26216338]
[1769389981610,0.002,2874.0,2872.8,12.26216338]
[1769389981845,0.002,2874.2,2872.8,12.26216338]
[1769389982034,0.002,2874.2,2873.0,12.26216338]
[1769389982413,0.002,2874.2,2873.2,12.26216338]
[1769389982755,0.002,2874.5,2873.4,12.26216338]
[1769389983941,0.002,2874.5,2873.4,12.34615435]
[1769389984440,0.002,2874.5,2873.4,12.26216338]
[1769389985043,0.002,2874.5,2872.9,13.01011701]
[1769389985241,0.002,2874.3,2872.9,13.01011701]
[1769389985448,0.002,2874.3,2873.0,1.38803443]
[1769389986214,0.002,2874.3,2873.7,13.01011701]
[1769389986448,0.0008,2874.8,2873.9,13.01011701]
[1769389987467,0.0008,2874.8,2873.9,13.88001391]
[1769389987650,0.002,2875.7,2874.6,0.08399097]
[1769389987943,0.87135717,2875.7,2874.6,0.06803788]
[1769389988318,0.002,2875.7,2874.6,0.06803788]
[1769389989327,0.002,2875.7,2874.7,12.92612604]
[1769389989918,0.019705,2876.0,2875.1,12.92612604]
[1769389990236,0.019705,2876.0,2875.4,13.01011701]
[1769389990439,0.019705,2876.0,2875.5,1.3010117]
[1769389991152,1.59879492,2876.9,2875.5,1.3010117]
[1769389991352,1.59879492,2876.9,2874.9,13.79570183]
[1769389991353,12.69254796,2876.9,2874.9,13.79570183]
[1769389991526,0.86979492,2876.9,2875.4,13.87954143]
[1769389991855,0.0008,2876.9,2875.5,13.7955323]
[1769389992014,1.34352742,2876.9,2875.6,1.38795233]
[1769389992215,13.16628046,2876.9,2875.0,13.01011701]
[1769389992539,12.55175304,2876.8,2875.0,12.92612604]
[1769389992932,0.86905134,2876.7,2875.0,12.92612604]
[1769389993450,1.34354088,2876.9,2875.4,13.01011701]
[1769389994019,1.34354088,2876.9,2875.1,0.08399097]
[1769389994353,0.48195046,2876.8,2875.3,0.08399097]
[1769389994521,1.21095046,2876.8,2875.3,0.08399097]
[1769389994717,13.0337035,2876.8,2874.7,12.92612604]
[1769389995043,0.86905134,2876.7,2874.7,13.79576362]
[1769389995237,0.86905134,2876.7,2874.7,13.79576882]
[1769389995438,1.73789602,2876.6,2874.8,1.72745089]
[1769389995750,1.73789602,2876.6,2874.8,14.65357693]
[1769389996867,14.09291859,2876.6,2874.3,13.06640999]
[1769389997032,12.35502257,2876.4,2874.4,12.37219985]
[1769389997233,12.35502257,2876.4,2874.4,12.42140096]
[1769389997546,1.32241343,2876.3,2874.6,12.33740999]
[1769389997748,2.05141343,2876.3,2874.6,12.33740999]
[1769389998121,2.05141343,2876.3,2874.7,0.03478623]
[1769389998356,14.406436,2876.3,2874.7,0.03478623]
[1769389998727,14.406436,2876.3,2874.6,0.03478744]
[1769389998928,13.79566617,2876.2,2874.3,0.03479107]
[1769389999139,0.86923264,2876.1,2874.3,12.37220106]
[1769389999339,0.86923264,2876.1,2874.3,13.20718521]
[1769390000137,0.86923264,2876.1,2874.3,12.33740999]
[1769390000547,0.86923264,2876.1,2874.4,0.03478986]
[1769390000731,2.65868068,2876.0,2874.4,1.27200984]
[1769390000930,0.57868068,2876.0,2874.3,12.33740999]
[1769390001187,13.22431566,2875.9,2874.4,0.03478986]
[1769390001334,1.59729309,2875.9,2874.3,12.33740999]
[1769390001531,0.86929309,2875.9,2874.4,0.03478986]
[1769390001840,0.86929309,2875.9,2874.4,12.37219985]
[1769390002166,0.86929309,2875.9,2874.5,13.57462997]
[1769390002167,0.728,2875.8,2874.5,13.57462997]
[1769390002335,0.728,2875.8,2874.7,12.33740999]
[1769390002531,0.728,2875.8,2874.5,1.23721998]
[1769390002730,0.728,2875.8,2874.3,12.33740999]
[1769390003143,0.86935354,2875.7,2874.3,12.33740999]
[1769390003670,0.86935354,2875.7,2874.1,0.001]
[1769390004134,13.22437611,2875.7,2874.1,0.001]
[1769390006378,0.86935354,2875.7,2874.1,12.33840999]
[1769390006559,1.16267677,2875.6,2874.2,13.60604328]
[1769390006880,1.16267677,2875.6,2874.2,13.57125099]
[1769390007248,0.86941401,2875.5,2874.2,13.57125099]
[1769390007943,4.96738892,2875.3,2873.3,12.33740999]
[1769390008146,12.35502257,2875.0,2873.3,12.33740999]
[1769390008382,0.728,2875.2,2873.4,12.37221196]
[1769390008578,0.728,2875.2,2873.4,12.33740999]
[1769390008761,0.5611398,2875.1,2873.5,1.26854176]
[1769390009066,0.5611398,2875.1,2873.5,13.60595175]
[1769390009368,0.86959546,2874.9,2873.7,12.33740999]
[1769390009553,0.728,2874.8,2873.8,12.37220712]
[1769390009752,0.728,2874.8,2874.0,12.33740999]
[1769390010467,0.728,2874.8,2873.6,0.95397935]
[1769390010468,0.728,2874.8,2873.6,12.42140096]
[1769390010659,0.728,2874.7,2873.7,0.03479834]
[1769390010857,12.35502257,2875.5,2873.7,0.03479834]
[1769390010858,0.86941401,2875.5,2873.9,12.33740999]
[1769390011057,0.728,2875.1,2874.0,13.6143448]
[1769390011268,0.728,2875.1,2874.0,13.57955009]
[1769390011476,0.86956521,2875.0,2873.6,12.42140096]
[1769390011670,0.86956521,2875.0,2874.2,0.001]
[1769390012738,0.86956521,2875.0,2873.4,0.08399097]
[1769390012939,0.86956521,2875.0,2873.2,0.08399097]
[1769390012940,13.22458778,2875.0,2873.2,0.03480439]
[1769390013165,12.35502257,2874.8,2873.2,0.03480439]
[1769390013372,0.86968621,2874.6,2873.1,12.33740999]
[1769390013577,0.86968621,2874.6,2872.8,0.95421514]
[1769390013777,0.86968621,2874.6,2872.9,0.03480803]
[1769390013778,13.61457589,2874.6,2872.9,0.03480803]
[1769390014357,0.728,2874.5,2872.7,13.52697239]
[1769390014676,0.728,2874.4,2872.9,12.65673224]
[1769390014880,0.86968621,2874.6,2873.2,12.57274127]
[1769390015083,0.728,2874.3,2873.3,12.60754445]
[1769390015266,0.728,2874.3,2873.1,0.08399097]
[1769390015466,0.86980725,2874.2,2873.2,0.03480439]
[1769390015880,0.728,2874.1,2873.2,0.03480439]
[1769390016085,0.728,2874.1,2873.0,1.30396097]
[1769390016251,1.23570146,2874.1,2873.0,1.30396097]
[1769390016452,1.23570146,2874.1,2873.0,1.26915415]
[1769390017073,1.23570146,2874.1,2872.9,0.03480803]
[1769390017074,0.729,2874.0,2872.9,0.03480803]
[1769390017379,0.86989804,2873.9,2872.4,12.65673224]
[1769390017556,0.86989804,2873.9,2872.4,12.57274127]
[1769390017763,0.729,2873.8,2872.5,13.5618385]
[1769390017969,0.729,2873.8,2872.7,12.57274127]
[1769390018174,0.729,2873.8,2872.8,0.03375228]
[1769390018377,0.86989804,2873.9,2872.8,0.03375228]
[1769390018588,0.729,2873.7,2872.8,12.6064938]
[1769390018893,0.729,2873.9,2872.9,12.60649263]
[1769390019070,0.729,2873.9,2873.0,0.03480682]
[1769390019650,1.59892759,2873.9,2872.9,13.80647999]
[1769390019856,1.59892759,2873.9,2872.9,12.57274127]
[1769390020054,0.729,2873.8,2872.1,12.57274127]
[1769390020285,0.729,2873.8,2872.3,12.57274127]
[1769390020478,0.729,2873.8,2872.4,0.03375712]
[1769390020959,0.729,2873.8,2871.9,13.44322574]
[1769390021154,0.729,2873.8,2872.0,1.38754061]
[1769390021462,0.729,2873.8,2872.0,14.83074789]
[1769390021463,0.86998886,2873.6,2872.0,14.83074789]
[1769390021798,0.729,2873.5,2872.0,13.92546294]
[1769390022519,0.86998886,2873.6,2872.0,14.79593366]
[1769390022665,0.729,2873.5,2872.2,12.57274127]
[1769390022857,0.729,2873.5,2872.3,1.2720162]
[1769390022858,1.16399443,2873.5,2872.3,1.2720162]
[1769390023252,0.729,2873.4,2872.3,13.84475747]
[1769390023457,0.87007969,2873.3,2872.3,13.80994217]
[1769390023657,0.87007969,2873.3,2872.3,1.2372009]
[1769390023865,0.87007969,2873.3,2872.2,0.03581651]
[1769390024293,0.87007969,2873.3,2872.2,0.001]
[1769390024596,2.95007969,2873.3,2872.2,0.001]
[1769390024770,13.61496937,2873.3,2872.2,0.001]
[1769390025577,0.87007969,2873.3,2872.2,0.001]
[1769390025773,1.16403288,2873.2,2872.2,0.001]
[1769390026201,0.43503288,2873.2,2872.2,0.001]
[1769390026401,0.43503288,2873.2,2872.2,0.03581651]
[1769390026602,0.87006711,2873.4,2872.2,12.60855778]
[1769390026809,0.729,2873.2,2872.2,12.57374127]
[1769390027609,0.86986778,2874.0,2872.2,12.57374127]
[1769390027773,12.74488968,2873.9,2872.3,0.0348153]
[1769390028100,2.09047575,2873.8,2872.3,0.0348153]
[1769390028469,0.729,2873.7,2872.3,0.0348153]
[1769390028896,0.729,2873.6,2872.3,12.60755657]
[1769390029198,1.36147575,2873.8,2872.3,12.60755657]
[1769390029199,1.36147575,2873.8,2872.3,12.57274127]
[1769390029400,0.729,2873.5,2872.4,0.03481409]
[1769390029589,0.729,2873.4,2872.4,1.29566963]
[1769390029788,1.59906049,2873.4,2872.4,1.26085554]
[1769390029982,1.59906049,2873.4,2872.3,12.57274127]
[1769390030582,0.729,2873.3,2872.3,12.57274127]
[1769390030903,13.47388968,2873.3,2872.2,0.001]
[1769390031597,12.74488968,2873.2,2871.5,12.57274127]
[1769390031802,0.87014026,2873.1,2871.5,12.57274127]
[1769390032005,1.7095591,2873.0,2871.5,12.57274127]
[1769390032524,0.729,2872.9,2871.6,0.03482379]
[1769390032669,0.729,2872.9,2871.5,12.57274127]
[1769390033600,1.7095591,2873.0,2871.5,12.57274127]
[1769390033601,0.729,2872.8,2871.5,12.57274127]
[1769390033801,13.6151511,2872.7,2871.1,12.57274127]
[1769390033991,1.78251968,2872.6,2871.1,12.57274127]
[1769390034907,1.78251968,2872.6,2870.6,0.001]
[1769390034908,14.52740936,2872.6,2870.6,0.001]
[1769390035123,14.61140033,2872.6,2870.6,0.001]
[1769390035678,0.87032201,2872.5,2870.6,0.001]
[1769390035881,14.64119072,2872.4,2870.6,0.001]
[1769390037446,0.729,2872.3,2870.6,12.57374127]
[1769390037743,0.729,2872.2,2871.0,12.57274127]
[1769390038249,0.729,2872.2,2870.8,0.87082326]
[1769390038445,0.729,2872.1,2870.7,0.0348347]
[1769390038609,0.87029172,2872.6,2870.9,12.57274127]
[1769390038811,0.729,2872.5,2871.1,12.57274127]
[1769390039230,0.729,2872.4,2871.1,12.57274127]
[1769390039545,0.729,2872.4,2870.8,13.44357199]
[1769390039713,0.729,2872.4,2870.9,0.03483228]
[1769390039906,0.87038262,2872.3,2870.9,13.93663852]
[1769390040107,0.87038262,2872.3,2870.9,12.57274127]
[1769390041126,13.6152723,2872.3,2870.6,0.001]
[1769390042438,12.74488968,2872.2,2870.6,0.001]
[1769390042613,12.74488968,2872.2,2870.4,0.001]
[1769390042614,12.74488968,2871.8,2870.4,0.001]
[1769390042804,2.01188807,2871.7,2870.4,0.001]
[1769390043004,6.15860513,2872.3,2870.4,12.57374127]
[1769390043209,13.12531202,2872.2,2870.6,12.80969982]
[1769390043743,12.39631202,2872.2,2870.6,12.80969982]
[1769390043903,1.59944322,2872.1,2870.8,12.80969982]
[1769390044109,0.729,2872.0,2870.8,12.80969982]
[1769390044438,0.729,2872.0,2870.4,12.81069982]
[1769390044634,0.729,2872.0,2870.5,0.03483713]
[1769390045332,0.729,2872.0,2870.5,0.90573979]
[1769390045537,0.729,2872.0,2870.5,0.03483713]
[1769390045733,0.729,2872.0,2870.5,0.90575879]
[1769390045938,2.27007936,2871.9,2870.5,1.75486766]
[1769390046544,12.39631202,2871.8,2870.4,0.001]
[1769390046706,0.729,2871.7,2870.4,0.001]
[1769390047316,12.39631202,2871.4,2870.2,0.01536732]
[1769390047515,12.39631202,2871.4,2869.4,13.68195778]
[1769390047734,1.76845345,2871.3,2869.5,14.22114397]
[1769390047930,5.28822251,2870.9,2869.4,0.001]
[1769390048116,0.729,2870.8,2869.4,0.001]
[1769390048546,13.12531202,2870.8,2869.4,0.001]
[1769390048838,2.0415312,2870.7,2869.4,0.001]
[1769390049152,0.729,2870.7,2869.4,0.001]
[1769390049369,13.12531202,2870.7,2869.4,0.001]
[1769390049852,0.87089807,2870.6,2869.4,0.001]
[1769390050056,0.87089807,2870.6,2868.0,0.001]
[1769390050057,12.39631202,2869.7,2868.0,0.001]
[1769390050339,5.28822251,2869.8,2868.0,0.001]
[1769390050340,14.89376547,2869.6,2868.0,0.001]
[1769390050551,13.12531202,2869.6,2868.0,0.001]
[1769390051526,12.39631202,2869.6,2868.0,0.001]
[1769390051760,0.729,2869.5,2868.0,0.001]
[1769390051933,0.87126228,2869.4,2868.0,0.001]
[1769390052132,0.50853114,2869.3,2867.8,12.80969982]
[1769390052331,12.90484316,2869.3,2867.7,0.001]
[1769390052639,0.729,2869.2,2867.7,0.001]
[1769390052870,0.50853114,2869.3,2867.8,13.68144635]
[1769390053171,0.729,2869.2,2867.9,14.17794446]
[1769390053529,12.39631202,2869.7,2867.9,14.17794446]
[1769390053530,0.87113272,2869.9,2868.1,12.80969982]
[1769390053838,0.729,2869.8,2868.3,12.80969982]
[1769390054028,0.128,2870.4,2868.4,12.84456246]
[1769390054029,0.729,2869.7,2868.4,12.84456246]
[1769390054225,0.729,2869.6,2868.4,12.80969982]
[1769390054557,0.729,2869.6,2868.4,1.22167793]
[1769390054766,0.729,2869.6,2868.0,12.80969982]
[1769390055088,0.08399097,2869.1,2867.7,0.001]
[1769390055260,12.52431202,2869.2,2867.7,0.001]
[1769390055628,0.73,2869.1,2867.7,0.001]
[1769390056137,0.87138375,2869.0,2867.7,0.001]
[1769390056348,0.50869188,2868.9,2867.7,0.001]
[1769390056532,11.81132132,2868.7,2866.7,12.96541711]
[1769390057152,11.72733035,2868.7,2866.8,0.03488209]
[1769390057341,11.72733035,2868.7,2866.7,12.96541711]
[1769390057641,0.128,2868.3,2866.3,12.96541711]
[1769390057840,12.92126248,2868.2,2866.4,1.29654171]
[1769390058043,0.128,2867.9,2866.4,1.29654171]
[1769390058362,0.73,2867.8,2866.4,1.29654171]
[1769390058568,0.87166349,2868.1,2866.4,15.13411327]
[1769390058732,0.73,2868.0,2866.4,15.13411327]
[1769390058937,0.73,2868.0,2866.6,12.96541711]
[1769390059443,0.73,2868.2,2867.9,0.001]
[1769390059642,0.87147488,2868.7,2867.9,0.001]
[1769390059845,0.73,2868.3,2867.9,0.001]
[1769390060139,1.3801243,2868.9,2867.9,0.001]
[1769390060362,1.21656649,2868.8,2867.2,0.03487723]
[1769390060556,0.48656649,2868.8,2867.2,13.83734413]
[1769390060870,0.73,2868.7,2867.2,13.83734413]
[1769390061443,0.73,2868.7,2867.2,13.83734632]
[1769390061644,0.73,2868.7,2867.2,12.96541711]
[1769390061973,0.73,2868.6,2867.3,14.26195882]
[1769390062178,0.36856484,2869.7,2867.6,12.96541711]
[1769390062364,0.73,2869.6,2867.6,12.96541711]
[1769390062566,0.87108013,2870.0,2867.8,12.96541711]
[1769390062764,0.43553328,2869.9,2868.7,0.08399097]
[1769390063081,0.87108013,2870.0,2868.7,0.08399097]
[1769390063082,0.73,2869.8,2868.7,0.08399097]
[1769390063240,0.73,2869.8,2868.5,0.08399097]
[1769390063445,0.87108013,2870.0,2868.5,0.08399097]
[1769390063654,0.73,2869.7,2868.5,0.08399097]
[1769390064270,1.60119923,2869.7,2868.5,0.08399097]
[1769390064458,1.60119923,2869.7,2868.5,1.38053268]
[1769390064985,1.60119923,2869.7,2868.5,1.29654171]
[1769390065148,0.87117213,2869.7,2868.5,0.08399097]
[1769390065473,0.73,2869.6,2868.5,0.08399097]
[1769390065861,0.73,2869.5,2868.7,0.08399097]
[1769390067148,0.73,2869.8,2868.7,0.08399097]
[1769390067560,0.73,2869.8,2868.7,0.95546508]
[1769390067759,0.73,2869.9,2868.9,0.08399097]
[1769390068049,0.73,2869.9,2868.9,1.48447829]
[1769390068252,0.99886773,2870.7,2868.9,2.35586457]
[1769390068486,0.73,2870.5,2869.1,0.08399097]
[1769390068853,0.73,2870.4,2869.3,0.08399097]
[1769390069379,0.73,2870.4,2869.1,0.08399097]
[1769390069880,0.73,2870.4,2868.9,12.96541711]
[1769390070751,0.87098909,2870.3,2869.0,0.08399097]
[1769390070957,0.50848743,2870.2,2869.0,1.47607416]
[1769390071178,0.73,2870.1,2869.2,0.08399097]
[1769390071386,0.87087983,2870.7,2869.4,0.08399097]
[1769390071679,0.73,2870.4,2869.6,13.04940808]
[1769390072047,0.73,2870.4,2869.2,0.08399097]
[1769390072048,0.73,2870.4,2869.2,13.04940808]
[1769390072247,0.002,2870.2,2869.0,0.08399097]
[1769390072452,0.002,2870.2,2869.0,2.26031014]
[1769390072754,0.002,2870.2,2869.0,1.38893178]
[1769390072955,0.002,2870.2,2869.2,0.08399097]
[1769390073891,0.002,2870.2,2869.0,1.38893178]
[1769390074264,0.002,2870.2,2869.4,0.08399097]
[1769390075109,0.87301944,2870.2,2869.0,1.30494081]
[1769390075306,0.87301944,2870.2,2868.7,0.08399097]
[1769390076212,13.10993712,2870.2,2868.7,0.08399097]
[1769390076503,0.002,2870.2,2868.7,13.02029361]
[1769390076707,0.73,2870.1,2868.9,0.08399097]
[1769390077000,0.73,2870.1,2868.9,1.48156175]
[1769390077472,1.60107286,2870.1,2868.9,1.48156175]
[1769390078203,1.60107286,2870.1,2868.7,13.02029361]
[1769390079002,1.60107286,2870.1,2868.9,0.08399097]
[1769390079165,0.002,2870.2,2869.1,13.02029361]
[1769390079366,0.87302071,2870.2,2869.1,13.02029361]
[1769390079562,0.002,2870.2,2869.1,13.02029361]
[1769390081386,0.002,2870.2,2869.3,13.02029361]
[1769390083288,0.002,2870.2,2869.3,12.97029361]
[1769390083813,0.002,2870.4,2869.4,0.03485049]
[1769390084105,0.002,2870.4,2869.1,12.93630264]
[1769390084276,12.23891768,2870.0,2868.2,12.93630264]
[1769390084476,12.23891768,2870.0,2867.8,12.93630264]
[1769390084477,12.36491768,2869.7,2867.8,12.93630264]
[1769390084707,12.36491768,2869.7,2867.8,13.02029361]
[1769390085304,0.73,2869.6,2867.8,13.02029361]
[1769390085505,0.73,2869.6,2867.8,12.93630264]
[1769390085506,1.30949177,2869.5,2867.8,12.93630264]
[1769390085684,0.87126228,2869.4,2867.8,12.93630264]
[1769390088192,0.87126228,2869.4,2867.4,0.08399097]
[1769390088193,13.10817996,2869.4,2867.4,0.08399097]
[1769390088392,1.79027209,2869.3,2867.4,13.92701841]
[1769390088596,1.79027209,2869.3,2867.4,13.89214362]
[1769390088792,0.73,2869.2,2867.6,13.89207926]
[1769390089011,0.73,2869.2,2867.6,13.02029361]
[1769390089814,0.87135338,2869.1,2867.6,13.02029361]
[1769390089978,0.50867669,2869.0,2867.6,13.02029361]
[1769390090179,0.73,2868.9,2867.8,0.08399097]
[1769390090579,0.50867669,2869.0,2867.8,13.02029361]
[1769390090780,0.73,2869.1,2868.0,12.93630264]
[1769390091090,0.73,2869.1,2867.8,0.08399097]
[1769390091489,0.73,2869.1,2867.3,0.08399097]
[1769390091690,0.73,2869.1,2867.3,13.02029361]
[1769390091900,0.87138375,2869.0,2867.4,0.08399097]
[1769390092087,1.16569188,2868.9,2867.5,12.93630264]
[1769390092592,0.43569188,2868.9,2867.6,13.05516597]
[1769390092795,0.73,2869.0,2867.6,13.02029361]
[1769390093116,0.73,2869.0,2867.6,13.01157309]
[1769390094215,0.87141413,2868.9,2867.6,13.01157309]
[1769390094416,0.87141413,2868.9,2867.6,12.93630264]
[1769390095706,0.87141413,2868.9,2867.1,0.08399097]
[1769390095909,0.50870643,2868.8,2867.2,12.93630264]
[1769390096080,0.87147488,2868.7,2867.2,12.93630264]
[1769390096284,13.10839256,2868.7,2866.9,0.08399097]
[1769390096885,3.99460596,2868.8,2866.9,13.02029361]
[1769390096886,0.50870643,2868.8,2866.9,13.02029361]
[1769390097107,1.60146454,2868.8,2867.3,12.93630264]
[1769390097632,0.8714006,2869.0,2867.4,13.0551684]
[1769390097916,0.73,2868.8,2867.4,13.02029361]
[1769390098134,1.60146203,2868.8,2867.4,13.89214033]
[1769390098437,1.60346203,2868.8,2867.4,13.02029361]
[1769390098590,1.60346203,2868.8,2867.4,13.89216327]
[1769390098785,0.732,2868.8,2867.4,13.89216327]
[1769390098997,1.60346083,2868.8,2867.4,13.02029361]
[1769390099338,0.50891325,2868.7,2867.4,13.89215121]
[1769390099490,0.87344605,2868.8,2867.4,13.02029361]
[1769390099886,0.87344605,2868.8,2867.5,12.97117622]
[1769390100103,0.87344605,2868.8,2867.5,12.93630264]
[1769390100317,0.002,2868.8,2867.7,12.93630264]
[1769390100486,0.002,2868.8,2867.6,0.11886333]
[1769390100487,0.002,2868.8,2867.8,12.93630264]
[1769390100694,0.002,2868.8,2867.9,0.03486871]
[1769390101022,0.002,2868.8,2867.9,12.97117135]
[1769390101314,0.002,2868.8,2867.9,12.93630264]
[1769390101516,0.002,2868.8,2868.1,12.93630264]
[1769390102498,0.73,2869.6,2868.1,12.93630264]
[1769390102790,0.87114084,2869.8,2868.1,12.93630264]
[1769390102791,1.60114084,2869.8,2868.3,12.93630264]
[1769390103497,3.48456338,2869.9,2868.6,11.71807428]
[1769390103498,0.87112085,2869.9,2868.6,11.71807428]
[1769390103820,0.87309951,2870.0,2868.6,11.71807428]